[Event "4NCL Div 1 2018-19"]
[Site "Telford"]
[Date "2019.02.10"]
[Round "6.1"]
[White "Alsina Leal, Daniel"]
[Black "McShane, Luke J"]
[Result "1/2-1/2"]
[ECO "C47"]
[WhiteElo "2472"]
[BlackElo "2663"]
[Annotator "RC"]
[PlyCount "105"]
[EventDate "2018.11.10"]
[EventType "team-tourn"]
[EventCountry "GBR"]
[SourceTitle "playchess.com"]
[Source "ChessBase"]
[SourceQuality "1"]
[TimeControl "40/6000+30:3000+30"]

1. e4 {[%emt 0:02:32]} e5 {[%emt 0:00:00]} 2. Nf3 {[%emt 0:00:33]} Nc6 {[%emt 0:00:00]} 3. Nc3 {[%emt 0:01:17]} Nf6 {[%emt 0:00:04]} 4. d4 {[%emt 0:00:19]} exd4 {[%emt 0:00:11]} 5. Nxd4 {[%emt 0:00:06]} Bb4 {[%emt 0:00:05]} 6. Nxc6 {[%emt 0:00:16]} bxc6 {[%emt 0:00:06]} 7. Bd3 {[%emt 0:00:09]} d5 {[%emt 0:00:06]} 8. exd5 {[%emt 0:00:14]} O-O {[%emt 0:00:11]} 9. O-O {[%emt 0:00:04]} cxd5 {[%emt 0:00:05]} 10. h3 {[%emt 0:00:22]} c6 {[%emt 0:03:20]} 11. Qf3 {[%emt 0:00:22]} Rb8 {[%emt 0:04:25]} 12. Bf4 {[%emt 0:01:21]} Bd6 {[%emt 0:01:30]} 13. b3 {[%emt 0:00:43]} Qc7 {[%emt 0:18:36]} 14. Bxd6 {[%emt 0:11:36]} Qxd6 {[%emt 0:01:38]} 15. Qg3 {[%emt 0:04:24]} Qxg3 {[%emt 0:11:18]} 16. fxg3 {[%emt 0:00:25]} Re8 {[%emt 0:00:06]} 17. Rae1 {[%emt 0:17:27]} Kf8 {[%emt 0:00:41]} 18. Rxe8+ {[%emt 0:20:12]} Kxe8 {[%emt 0:00:25]} 19. Rf4 {[%emt 0:01:01]} Be6 {[%emt 0:04:45]} 20. Ra4 {[%emt 0:05:11]} Rb7 {[%emt 0:00:05]} 21. Ne2 {[%emt 0:03:51]} c5 {[%emt 0:11:31]} 22. c4 {[%emt 0:01:48]} d4 {[%emt 0:22:51]} 23. Ra5 {[%emt 0:08:12]} Rc7 {[%emt 0:00:26]} 24. Kf2 {[%emt 0:08:31]} g6 {[%emt 0:04:37]} 25. g4 {[%emt 0:02:32]} Ke7 {[%emt 0:05:49]} 26. g5 {[%emt 0:02:13]} Nd7 {[%emt 0:02:11]} 27. Nf4 {[%emt 0:01:41]} f5 {[%emt 0:13:10]} 28. Be2 {[%emt 0:05:31]} Nb6 {[%emt 0:01:08]} 29. h4 {[%emt 0:04:37]} Bc8 {[%emt 0:00:34]} 30. Nd3 {[%emt 0:01:56]} Kd6 {[%emt 0:02:35]} 31. b4 {[%emt 0:00:44]} Nxc4 {[%emt 0:00:51]} 32. bxc5+ {[%emt 0:00:52]} Ke7 {[%emt 0:00:03]} 33. Ra4 {[%emt 0:00:39]} Be6 {[%emt 0:00:52]} 34. Nf4 {[%emt 0:04:16]} Ne5 {[%emt 0:00:26]} 35. h5 {[%emt 0:00:53]} gxh5 {[%emt 0:00:34]} 36. Ra6 {[%emt 0:00:31]} Bg8 {[%emt 0:02:10]} 37. Ra5 {[%emt 0:00:37]} h4 {[%emt 0:00:24]} 38. Nd3 {[%emt 0:00:30]} Nd7 {[%emt 0:00:38]} 39. Bf3 {[%emt 0:00:27]} Bc4 {[%emt 0:00:26]} 40. Nb2 {[%emt 0:00:25]} Be6 {[%emt 0:00:35]} 41. Nd3 {[%emt 0:06:56]} Bc4 {[%emt 0:14:37]} 42. Nb2 {[%emt 0:01:30]} Ne5 {[%emt 0:06:55]} 43. Nxc4 {[%emt 0:05:50]} Nxc4 {[%emt 0:01:00]} 44. Ra4 {[%emt 0:00:11]} Ne5 {[%emt 0:22:37]} 45. Rxd4 {[%emt 0:02:42]} Kf7 {[%emt 0:00:08]} 46. Rxh4 {[%emt 0:18:37]} Kg6 {[%emt 0:00:30]} 47. c6 {[%emt 0:01:24]} Kxg5 {[%emt 0:00:37]} 48. Ra4 {[%emt 0:00:59]} Nxf3 {[%emt 0:02:03]} 49. Kxf3 {[%emt 0:01:55]} Rxc6 {[%emt 0:00:05]} 50. Rxa7 {[%emt 0:00:05]} Rc3+ {[%emt 0:00:12]} 51. Kf2 {[%emt 0:00:11]} Rc2+ {[%emt 0:00:35]} 52. Kf3 {[%emt 0:00:12]} Rc3+ {[%emt 0:00:06]} 53. Kf2 {[%emt 0:00:04]} 1/2-1/2

[Event "4NCL Div 1 2018-19"]
[Site "Telford"]
[Date "2019.02.10"]
[Round "6.6"]
[White "Galyas, Miklos"]
[Black "Bates, Richard A"]
[Result "1-0"]
[ECO "A30"]
[WhiteElo "2495"]
[BlackElo "2378"]
[Annotator "RC"]
[PlyCount "57"]
[EventDate "2018.11.10"]
[EventType "team-tourn"]
[EventCountry "GBR"]
[SourceTitle "playchess.com"]
[Source "ChessBase"]
[SourceQuality "1"]
[TimeControl "40/6000+30:3000+30"]

1. Nf3 {[%emt 0:00:00]} Nf6 {[%emt 0:07:16]} 2. g3 {[%emt 0:00:00]} g6 {[%emt 0:00:38]} 3. b3 {[%emt 0:00:06]} Bg7 {[%emt 0:00:19]} 4. Bb2 {[%emt 0:00:08]} O-O {[%emt 0:00:07]} 5. Bg2 {[%emt 0:00:03]} c5 {[%emt 0:11:09]} 6. c4 {[%emt 0:00:21]} Nc6 {[%emt 0:01:05]} 7. O-O {[%emt 0:00:14]} b6 {[%emt 0:08:00]} 8. d4 {[%emt 0:03:24]} cxd4 {[%emt 0:00:36]} 9. Nxd4 {[%emt 0:00:54]} Bb7 {[%emt 0:00:15]} 10. Nc3 {[%emt 0:01:28]} Qb8 {[%emt 0:07:19]} 11. Nc2 {[%emt 0:08:13]} Ne5 {[%emt 0:11:22]} 12. f4 {[%emt 0:19:08]} Bxg2 {[%emt 0:05:58]} 13. fxe5 {[%emt 0:05:36]} Bxf1 {[%emt 0:00:12]} 14. exf6 {[%emt 0:00:04]} Bxf6 {[%emt 0:06:10]} 15. Kxf1 {[%emt 0:03:33]} Qb7 {[%emt 0:09:03]} 16. Kg1 {[%emt 0:02:59]} b5 {[%emt 0:04:51]} 17. Ne3 {[%emt 0:06:30]} b4 {[%emt 0:03:37]} 18. Na4 {[%emt 0:00:19]} Qe4 {[%emt 0:08:20]} 19. Nd5 {[%emt 0:05:50]} Bxb2 {[%emt 0:00:21]} 20. Nxb2 {[%emt 0:00:05]} f5 {[%emt 0:00:41]} 21. Nd3 {[%emt 0:00:59]} e6 {[%emt 0:01:49]} 22. Nc5 {[%emt 0:07:57]} Qg4 {[%emt 0:02:47]} 23. Nxd7 {[%emt 0:00:38]} exd5 {[%emt 0:00:08]} 24. Qxd5+ {[%emt 0:00:15]} Kg7 {[%emt 0:01:35]} 25. Nxf8 {[%emt 0:02:00]} Rxf8 {[%emt 0:00:23]} 26. Qe5+ {[%emt 0:00:42]} Kg8 {[%emt 0:01:11]} 27. Qe6+ {[%emt 0:01:03]} Rf7 {[%emt 0:00:56]} 28. Rd1 {[%emt 0:00:30]} Qg5 {[%emt 0:00:05]} 29. Rd7 {[%emt 0:01:05]} 1-0

[Event "4NCL Div 1 2018-19"]
[Site "Telford"]
[Date "2019.02.10"]
[Round "6.7"]
[White "Wall, Tim P"]
[Black "Hebden, Mark L"]
[Result "1/2-1/2"]
[ECO "A03"]
[WhiteElo "2242"]
[BlackElo "2425"]
[Annotator "NA"]
[PlyCount "63"]
[EventDate "2018.11.10"]
[EventType "team-tourn"]
[EventCountry "GBR"]
[SourceTitle "playchess.com"]
[Source "ChessBase"]
[SourceQuality "1"]
[TimeControl "40/6000+30:3000+30"]

1. f4 {[%emt 0:35:52]} d5 {[%emt 0:00:32]} 2. Nf3 {[%emt 0:00:22]} g6 {[%emt 0:00:33]} 3. g3 {[%emt 0:00:18]} Bg7 {[%emt 0:00:09]} 4. Bg2 {[%emt 0:00:08]} Nf6 {[%emt 0:01:03]} 5. O-O {[%emt 0:00:12]} O-O {[%emt 0:00:20]} 6. d3 {[%emt 0:00:17]} c5 {[%emt 0:00:19]} 7. c3 {[%emt 0:00:29]} Nc6 {[%emt 0:03:51]} 8. Na3 {[%emt 0:00:29]} Rb8 {[%emt 0:02:28]} 9. Ne5 {[%emt 0:01:28]} Nxe5 {[%emt 0:05:31]} 10. fxe5 {[%emt 0:00:27]} Nd7 {[%emt 0:00:14]} 11. d4 {[%emt 0:03:21]} e6 {[%emt 0:00:18]} 12. Bf4 {[%emt 0:09:50]} cxd4 {[%emt 0:00:55]} 13. cxd4 {[%emt 0:00:35]} Qb6 {[%emt 0:00:23]} 14. Rf3 {[%emt 0:05:14]} a6 {[%emt 0:09:11]} 15. Kh1 {[%emt 0:04:01]} Qa7 {[%emt 0:00:30]} 16. Nc2 {[%emt 0:04:41]} b5 {[%emt 0:00:40]} 17. Qd2 {[%emt 0:00:49]} Bb7 {[%emt 0:07:36]} 18. Bh6 {[%emt 0:02:14]} f6 {[%emt 0:05:24]} 19. exf6 {[%emt 0:05:54]} Nxf6 {[%emt 0:01:25]} 20. Raf1 {[%emt 0:05:01]} Ne4 {[%emt 0:06:09]} 21. Qe3 {[%emt 0:06:42]} Rxf3 {[%emt 0:00:35]} 22. exf3 {[%emt 0:04:11]} Bxh6 {[%emt 0:00:25]} 23. Qxh6 {[%emt 0:00:10]} Nd6 {[%emt 0:02:05]} 24. Bh3 {[%emt 0:09:53]} Re8 {[%emt 0:01:08]} 25. Qf4 {[%emt 0:06:52]} Qb6 {[%emt 0:03:34]} 26. Qf6 {[%emt 0:06:33]} Nc4 {[%emt 0:05:13]} 27. Re1 {[%emt 0:12:24]} e5 {[%emt 0:03:01]} 28. Qxb6 {[%emt 0:02:24]} Nxb6 {[%emt 0:00:02]} 29. dxe5 {[%emt 0:00:54]} Nc4 {[%emt 0:00:28]} 30. b3 {[%emt 0:01:36]} Nxe5 {[%emt 0:01:37]} 31. Nd4 {[%emt 0:04:03]} Kf7 {[%emt 0:01:05]} 32. Bf1 {[%emt 0:06:46]} 1/2-1/2

[Event "4NCL Div 1 2018-19"]
[Site "Telford"]
[Date "2019.02.10"]
[Round "6.7"]
[White "Ledger, Dave J"]
[Black "Bulmaga, Irina"]
[Result "0-1"]
[ECO "C54"]
[WhiteElo "2237"]
[BlackElo "2386"]
[Annotator "NA"]
[PlyCount "120"]
[EventDate "2018.11.10"]
[EventType "team-tourn"]
[EventCountry "GBR"]
[SourceTitle "playchess.com"]
[Source "ChessBase"]
[SourceQuality "1"]
[TimeControl "40/6000+30:3000+30"]

1. e4 {[%emt 0:00:00]} e5 {[%emt 0:00:00]} 2. Nf3 {[%emt 0:00:00]} Nc6 {[%emt 0:00:00]} 3. Bc4 {[%emt 0:00:00]} Bc5 {[%emt 0:00:00]} 4. c3 {[%emt 0:02:05]} Nf6 {[%emt 0:00:20]} 5. d3 {[%emt 0:00:20]} d6 {[%emt 0:00:19]} 6. O-O {[%emt 0:03:01]} a5 {[%emt 0:00:16]} 7. Bb3 {[%emt 0:01:08]} h6 {[%emt 0:00:40]} 8. Nbd2 {[%emt 0:01:40]} O-O {[%emt 0:00:22]} 9. Re1 {[%emt 0:01:17]} Re8 {[%emt 0:04:31]} 10. Nf1 {[%emt 0:04:13]} Bd7 {[%emt 0:18:14]} 11. Ng3 {[%emt 0:03:48]} Qb8 {[%emt 0:07:51]} 12. h3 {[%emt 0:05:42]} Qa7 {[%emt 0:05:44]} 13. Be3 {[%emt 0:07:18]} Bxe3 {[%emt 0:03:34]} 14. Rxe3 {[%emt 0:00:55]} a4 {[%emt 0:00:22]} 15. Bc2 {[%emt 0:01:23]} d5 {[%emt 0:07:54]} 16. exd5 {[%emt 0:01:00]} Nxd5 {[%emt 0:00:15]} 17. Re4 {[%emt 0:00:06]} a3 {[%emt 0:01:32]} 18. Ra4 {[%emt 0:08:10]} Qb8 {[%emt 0:10:53]} 19. Rxa3 {[%emt 0:05:34]} Rxa3 {[%emt 0:00:42]} 20. bxa3 {[%emt 0:00:04]} Nxc3 {[%emt 0:01:11]} 21. Qd2 {[%emt 0:00:18]} Nb5 {[%emt 0:02:01]} 22. Ba4 {[%emt 0:03:33]} Nd6 {[%emt 0:02:48]} 23. Ne4 {[%emt 0:09:16]} Qa7 {[%emt 0:03:56]} 24. Bxc6 {[%emt 0:05:54]} Bxc6 {[%emt 0:00:17]} 25. Qb4 {[%emt 0:01:59]} Bxe4 {[%emt 0:02:32]} 26. dxe4 {[%emt 0:00:07]} c5 {[%emt 0:01:27]} 27. Qb2 {[%emt 0:00:39]} c4 {[%emt 0:06:23]} 28. Nxe5 {[%emt 0:09:22]} Qc5 {[%emt 0:00:43]} 29. Ng4 {[%emt 0:01:21]} Rxe4 {[%emt 0:01:46]} 30. Rc1 {[%emt 0:09:01]} b5 {[%emt 0:05:13]} 31. Rc3 {[%emt 0:05:25]} Nf5 {[%emt 0:01:58]} 32. Qd2 {[%emt 0:05:14]} Qd4 {[%emt 0:04:01]} 33. Qxd4 {[%emt 0:02:09]} Nxd4 {[%emt 0:00:07]} 34. Kh2 {[%emt 0:03:05]} Ne6 {[%emt 0:02:24]} 35. Ne3 {[%emt 0:01:34]} Nc5 {[%emt 0:00:22]} 36. Rc2 {[%emt 0:00:29]} Na4 {[%emt 0:01:53]} 37. Nd5 {[%emt 0:02:00]} Rd4 {[%emt 0:08:17]} 38. Nc3 {[%emt 0:05:29]} Nxc3 {[%emt 0:00:53]} 39. Rxc3 {[%emt 0:00:03]} Rd3 {[%emt 0:00:11]} 40. Rc2 {[%emt 0:00:12]} Rxa3 {[%emt 0:00:06]} 41. Rb2 {[%emt 0:51:43]} Ra5 {[%emt 0:51:42]} 42. Kg3 {[%emt 0:00:00]} c3 {[%emt 0:00:00]} 43. Rc2 {[%emt 0:00:00]} b4 {[%emt 0:00:00]} 44. Kf3 {[%emt 0:00:00]} Rd5 {[%emt 0:00:00]} 45. a3 {[%emt 0:00:00]} bxa3 {[%emt 0:00:00]} 46. Rxc3 {[%emt 0:00:00]} Ra5 {[%emt 0:00:00]} 47. Rc1 {[%emt 0:00:00]} a2 {[%emt 0:00:00]} 48. Ra1 {[%emt 0:00:00]} Kf8 {[%emt 0:00:00]} 49. Ke4 {[%emt 0:00:00]} Ke7 {[%emt 0:00:00]} 50. Kd4 {[%emt 0:00:00]} Kd6 {[%emt 0:00:00]} 51. Kc4 {[%emt 0:00:00]} Kc6 {[%emt 0:00:00]} 52. Kb4 {[%emt 0:00:00]} Kb6 {[%emt 0:00:00]} 53. f4 {[%emt 0:00:00]} f5 {[%emt 0:00:00]} 54. g4 {[%emt 0:00:00]} g6 {[%emt 0:00:00]} 55. gxf5 {[%emt 0:00:00]} gxf5 {[%emt 0:00:00]} 56. h4 {[%emt 0:00:00]} h5 {[%emt 0:00:00]} 57. Kc4 {[%emt 0:00:00]} Kc6 {[%emt 0:00:00]} 58. Kd4 {[%emt 0:00:00]} Kd6 {[%emt 0:00:00]} 59. Kc4 {[%emt 0:00:00]} Ra4+ {[%emt 0:00:00]} 60. Kb5 {[%emt 0:00:00]} Rxf4 {[%emt 0:00:00]} 0-1

[Event "4NCL Div 1 2018-19"]
[Site "Telford"]
[Date "2019.02.10"]
[Round "6.8"]
[White "Milliet, Sophie"]
[Black "Maroroa, Sue"]
[Result "1-0"]
[ECO "C95"]
[WhiteElo "2386"]
[BlackElo "2104"]
[Annotator "NA"]
[PlyCount "121"]
[EventDate "2018.11.10"]
[EventType "team-tourn"]
[EventCountry "GBR"]
[SourceTitle "playchess.com"]
[Source "ChessBase"]
[SourceQuality "1"]
[TimeControl "40/6000+30:3000+30"]

1. e4 {[%emt 0:00:00]} e5 {[%emt 0:10:51]} 2. Nf3 {[%emt 0:00:00]} Nc6 {[%emt 0:00:06]} 3. Bb5 {[%emt 0:00:00]} a6 {[%emt 0:00:04]} 4. Ba4 {[%emt 0:00:00]} Nf6 {[%emt 0:00:05]} 5. O-O {[%emt 0:00:25]} Be7 {[%emt 0:00:06]} 6. Re1 {[%emt 0:04:42]} b5 {[%emt 0:00:10]} 7. Bb3 {[%emt 0:00:03]} d6 {[%emt 0:00:07]} 8. c3 {[%emt 0:00:07]} O-O {[%emt 0:00:06]} 9. h3 {[%emt 0:00:04]} Nb8 {[%emt 0:00:07]} 10. d4 {[%emt 0:00:36]} Nbd7 {[%emt 0:00:11]} 11. Nbd2 {[%emt 0:00:28]} Bb7 {[%emt 0:00:20]} 12. Bc2 {[%emt 0:00:27]} Re8 {[%emt 0:00:24]} 13. Nf1 {[%emt 0:00:17]} Bf8 {[%emt 0:00:53]} 14. Bg5 {[%emt 0:05:15]} h6 {[%emt 0:00:30]} 15. Bh4 {[%emt 0:00:05]} Qc8 {[%emt 0:07:22]} 16. dxe5 {[%emt 0:06:24]} dxe5 {[%emt 0:00:44]} 17. N3h2 {[%emt 0:03:00]} c5 {[%emt 0:04:59]} 18. Qf3 {[%emt 0:01:33]} Qc6 {[%emt 0:04:57]} 19. Rad1 {[%emt 0:00:45]} Qe6 {[%emt 0:06:44]} 20. Bb1 {[%emt 0:07:03]} Be7 {[%emt 0:15:37]} 21. Ne3 {[%emt 0:02:53]} g6 {[%emt 0:01:07]} 22. Nhg4 {[%emt 0:20:01]} Nxg4 {[%emt 0:01:05]} 23. Qxg4 {[%emt 0:00:20]} Qxg4 {[%emt 0:01:30]} 24. Nxg4 {[%emt 0:08:46]} Bxh4 {[%emt 0:00:40]} 25. Rxd7 {[%emt 0:00:13]} Bc8 {[%emt 0:00:19]} 26. Rd5 {[%emt 0:00:44]} Bxg4 {[%emt 0:00:30]} 27. hxg4 {[%emt 0:00:04]} Rac8 {[%emt 0:00:25]} 28. g3 {[%emt 0:08:17]} Bg5 {[%emt 0:01:35]} 29. Bc2 {[%emt 0:00:42]} Kg7 {[%emt 0:05:30]} 30. Red1 {[%emt 0:11:33]} Red8 {[%emt 0:18:24]} 31. a4 {[%emt 0:05:27]} Rxd5 {[%emt 0:02:14]} 32. exd5 {[%emt 0:01:52]} Rd8 {[%emt 0:06:14]} 33. d6 {[%emt 0:01:53]} Kf6 {[%emt 0:00:25]} 34. axb5 {[%emt 0:00:54]} axb5 {[%emt 0:00:09]} 35. Rd5 {[%emt 0:15:11]} Bc1 {[%emt 0:03:07]} 36. b4 {[%emt 0:03:57]} cxb4 {[%emt 0:00:16]} 37. cxb4 {[%emt 0:00:01]} Ba3 {[%emt 0:00:11]} 38. d7 {[%emt 0:00:34]} Bxb4 {[%emt 0:03:34]} 39. Rxb5 {[%emt 0:01:06]} Bd6 {[%emt 0:00:49]} 40. Rb7 {[%emt 0:00:12]} Kg5 {[%emt 0:06:38]} 41. Bb3 {[%emt 0:07:26]} f5 {[%emt 0:03:21]} 42. gxf5 {[%emt 0:01:13]} gxf5 {[%emt 0:00:45]} 43. Bf7 {[%emt 0:00:44]} f4 {[%emt 0:04:08]} 44. Kg2 {[%emt 0:10:57]} fxg3 {[%emt 0:02:48]} 45. fxg3 {[%emt 0:00:03]} Kf5 {[%emt 0:08:33]} 46. Be8 {[%emt 0:00:48]} Be7 {[%emt 0:00:45]} 47. Rb6 {[%emt 0:03:51]} Bf6 {[%emt 0:01:36]} 48. g4+ {[%emt 0:00:37]} Kg5 {[%emt 0:00:32]} 49. Kf3 {[%emt 0:01:25]} Ra8 {[%emt 0:01:44]} 50. Bh5 {[%emt 0:06:21]} Ra3+ {[%emt 0:03:17]} 51. Ke4 {[%emt 0:00:07]} Ra4+ {[%emt 0:00:40]} 52. Kd5 {[%emt 0:00:13]} Rd4+ {[%emt 0:00:13]} 53. Ke6 {[%emt 0:01:15]} Bd8 {[%emt 0:15:48]} 54. Rb8 {[%emt 0:01:01]} Bc7 {[%emt 0:00:42]} 55. Rc8 {[%emt 0:00:24]} Bb6 {[%emt 0:00:08]} 56. Rc6 {[%emt 0:00:24]} Bd8 {[%emt 0:00:40]} 57. Rc5 {[%emt 0:00:52]} Bf6 {[%emt 0:04:19]} 58. Rc8 {[%emt 0:00:54]} e4 {[%emt 0:01:42]} 59. Rc5+ {[%emt 0:03:49]} Kh4 {[%emt 0:00:07]} 60. Kxf6 {[%emt 0:00:14]} Rxd7 {[%emt 0:00:04]} 61. Re5 {[%emt 0:00:08]} 1-0

[Event "4NCL Div 1 2018-19"]
[Site "Telford"]
[Date "2019.02.10"]
[Round "6.8"]
[White "Dahl, Baard"]
[Black "Ledger, Stephen C"]
[Result "1/2-1/2"]
[ECO "A59"]
[WhiteElo "2053"]
[BlackElo "2023"]
[Annotator "NA"]
[PlyCount "59"]
[EventDate "2018.11.10"]
[EventType "team-tourn"]
[EventCountry "GBR"]
[SourceTitle "playchess.com"]
[Source "ChessBase"]
[SourceQuality "1"]
[TimeControl "40/6000+30:3000+30"]

1. d4 {[%emt 0:00:00]} Nf6 {[%emt 0:00:24]} 2. c4 {[%emt 0:00:00]} c5 {[%emt 0:00:48]} 3. d5 {[%emt 0:00:59]} b5 {[%emt 0:00:27]} 4. cxb5 {[%emt 0:00:39]} a6 {[%emt 0:00:10]} 5. bxa6 {[%emt 0:01:08]} Bxa6 {[%emt 0:00:34]} 6. Nc3 {[%emt 0:00:58]} g6 {[%emt 0:00:52]} 7. e4 {[%emt 0:00:31]} Bxf1 {[%emt 0:00:19]} 8. Kxf1 {[%emt 0:00:07]} d6 {[%emt 0:00:53]} 9. g3 {[%emt 0:00:06]} Bg7 {[%emt 0:00:26]} 10. Kg2 {[%emt 0:00:07]} O-O {[%emt 0:00:55]} 11. Nf3 {[%emt 0:00:04]} Nbd7 {[%emt 0:01:00]} 12. a4 {[%emt 0:00:50]} Qb6 {[%emt 0:02:53]} 13. Ra3 {[%emt 0:00:07]} Rfb8 {[%emt 0:02:56]} 14. Nd2 {[%emt 0:00:13]} Ne8 {[%emt 0:11:56]} 15. Nb5 {[%emt 0:05:24]} Nc7 {[%emt 0:11:49]} 16. Nc4 {[%emt 0:01:55]} Qb7 {[%emt 0:00:46]} 17. Nxc7 {[%emt 0:00:36]} Qxc7 {[%emt 0:00:15]} 18. b3 {[%emt 0:07:57]} Ne5 {[%emt 0:10:56]} 19. Nxe5 {[%emt 0:09:52]} Bxe5 {[%emt 0:01:01]} 20. Qe2 {[%emt 0:20:46]} Qb7 {[%emt 0:05:58]} 21. h4 {[%emt 0:08:16]} Ra6 {[%emt 0:17:17]} 22. Qc2 {[%emt 0:13:02]} Qb4 {[%emt 0:20:24]} 23. f3 {[%emt 0:12:10]} Qc3 {[%emt 0:02:39]} 24. Qxc3 {[%emt 0:01:24]} Bxc3 {[%emt 0:00:10]} 25. Rd1 {[%emt 0:02:54]} Bb4 {[%emt 0:06:15]} 26. Ra2 {[%emt 0:03:30]} Ba5 {[%emt 0:01:37]} 27. Rd3 {[%emt 0:04:48]} Rab6 {[%emt 0:02:58]} 28. Ra3 {[%emt 0:04:05]} Bb4 {[%emt 0:01:23]} 29. Ra2 {[%emt 0:01:15]} Ba5 {[%emt 0:00:14]} 30. Ra3 {[%emt 0:01:01]} 1/2-1/2

[Event "4NCL Div 1 2018-19"]
[Site "Telford"]
[Date "2019.02.10"]
[Round "6.9"]
[White "Turner, Matthew J"]
[Black "Speelman, Jon S"]
[Result "1/2-1/2"]
[ECO "C07"]
[WhiteElo "2536"]
[BlackElo "2508"]
[Annotator "ChessBase"]
[PlyCount "32"]
[EventDate "2018.11.10"]
[EventType "team-tourn"]
[EventCountry "GBR"]
[SourceTitle "playchess.com"]
[Source "ChessBase"]
[SourceQuality "1"]
[TimeControl "40/6000+30:3000+30"]

1. e4 {[%emt 0:00:00]} e6 {[%emt 0:00:05]} 2. d4 {[%emt 0:00:54]} d5 {[%emt 0:00:06]} 3. Nd2 {[%emt 0:01:24]} c5 {[%emt 0:00:13]} 4. exd5 {[%emt 0:01:21]} Qxd5 {[%emt 0:00:05]} 5. dxc5 {[%emt 0:00:59]} Qxc5 {[%emt 0:00:07]} 6. Ngf3 {[%emt 0:00:25]} Nf6 {[%emt 0:00:15]} 7. Bd3 {[%emt 0:01:28]} Nbd7 {[%emt 0:02:19]} 8. O-O {[%emt 0:01:55]} Qc7 {[%emt 0:03:56]} 9. Re1 {[%emt 0:01:32]} b6 {[%emt 0:00:44]} 10. b3 {[%emt 0:02:01]} Bb7 {[%emt 0:01:43]} 11. Bb2 {[%emt 0:00:12]} Be7 {[%emt 0:01:25]} 12. Ne5 {[%emt 0:05:13]} O-O {[%emt 0:00:08]} 13. Nxd7 {[%emt 0:25:36]} Qxd7 {[%emt 0:02:39]} 14. Ne4 {[%emt 0:03:14]} Nxe4 {[%emt 0:01:16]} 15. Bxe4 {[%emt 0:00:04]} Qxd1 {[%emt 0:00:10]} 16. Raxd1 {[%emt 0:00:05]} Bxe4 {[%emt 0:00:35]} 1/2-1/2

[Event "4NCL Div 1 2018-19"]
[Site "Telford"]
[Date "2019.02.10"]
[Round "6.11"]
[White "Fodor, Tamas Jr."]
[Black "Longson, Alexander"]
[Result "1-0"]
[ECO "D28"]
[WhiteElo "2520"]
[BlackElo "2322"]
[Annotator "ChessBase"]
[PlyCount "57"]
[EventDate "2018.11.10"]
[EventType "team-tourn"]
[EventCountry "GBR"]
[SourceTitle "playchess.com"]
[Source "ChessBase"]
[SourceQuality "1"]
[TimeControl "40/6000+30:3000+30"]

1. d4 {[%emt 0:00:00]} d5 {[%emt 0:00:00]} 2. c4 {[%emt 0:00:10]} dxc4 {[%emt 0:00:00]} 3. Nf3 {[%emt 0:01:03]} Nf6 {[%emt 0:00:13]} 4. e3 {[%emt 0:00:12]} e6 {[%emt 0:00:48]} 5. Bxc4 {[%emt 0:00:08]} c5 {[%emt 0:00:14]} 6. O-O {[%emt 0:00:47]} a6 {[%emt 0:00:13]} 7. Qe2 {[%emt 0:00:07]} b5 {[%emt 0:01:23]} 8. Bd3 {[%emt 0:00:08]} Bb7 {[%emt 0:12:33]} 9. a4 {[%emt 0:03:19]} b4 {[%emt 0:04:16]} 10. Nbd2 {[%emt 0:04:31]} Nbd7 {[%emt 0:06:53]} 11. Nc4 {[%emt 0:04:02]} Be7 {[%emt 0:10:49]} 12. Rd1 {[%emt 0:02:39]} O-O {[%emt 0:08:17]} 13. e4 {[%emt 0:08:27]} cxd4 {[%emt 0:06:23]} 14. e5 {[%emt 0:00:09]} Nd5 {[%emt 0:03:10]} 15. Nxd4 {[%emt 0:00:15]} Nc5 {[%emt 0:08:40]} 16. Qg4 {[%emt 0:03:17]} Kh8 {[%emt 0:05:02]} 17. Bc2 {[%emt 0:04:06]} Rc8 {[%emt 0:05:29]} 18. Qh3 {[%emt 0:07:05]} g6 {[%emt 0:01:17]} 19. Bh6 {[%emt 0:01:40]} Rg8 {[%emt 0:04:02]} 20. Rac1 {[%emt 0:04:17]} Rc7 {[%emt 0:04:27]} 21. Nf3 {[%emt 0:02:17]} b3 {[%emt 0:12:48]} 22. Bb1 {[%emt 0:00:46]} Nxa4 {[%emt 0:06:09]} 23. Nd6 {[%emt 0:07:01]} Bxd6 {[%emt 0:01:14]} 24. exd6 {[%emt 0:00:08]} Qxd6 {[%emt 0:02:44]} 25. Rxc7 {[%emt 0:04:11]} Qxc7 {[%emt 0:00:04]} 26. Qh4 {[%emt 0:01:21]} Nab6 {[%emt 0:01:55]} 27. Rc1 {[%emt 0:02:24]} Qd7 {[%emt 0:02:35]} 28. Ne5 {[%emt 0:00:29]} Qe8 {[%emt 0:00:31]} 29. Rc7 {[%emt 0:00:32]} 1-0